bitfinex-derivatives/quotes_BTCF0:USTF0_20250327
["timestamp","ask_amount","ask_price","bid_price","bid_amount"]
[1743071652424,0.60845066,87542.0,87541.0,0.02919024]
[1743071652626,0.72388411,87542.0,87541.0,0.02919024]
[1743071652830,0.7514661,87542.0,87541.0,0.02919024]
[1743071654837,0.60845066,87542.0,87541.0,0.02919024]
[1743071655232,0.63617902,87542.0,87541.0,0.02919024]
[1743071655433,0.84179823,87542.0,87541.0,0.02919024]
[1743071655833,0.81406987,87542.0,87541.0,0.02919024]
[1743071659540,0.45326987,87542.0,87541.0,0.02919024]
[1743071659946,0.24765066,87542.0,87541.0,0.02919024]
[1743071660343,0.24756626,87542.0,87541.0,0.02919024]
[1743071661539,0.24756626,87542.0,87541.0,0.02979024]
[1743071661737,0.24756626,87542.0,87541.0,0.02919024]
[1743071662442,0.35732626,87542.0,87541.0,0.02919024]
[1743071663449,0.35732626,87542.0,87541.0,0.02983024]
[1743071663650,0.35732626,87542.0,87541.0,0.02919024]
[1743071663851,0.35732626,87542.0,87541.0,0.02979024]
[1743071664242,0.35732626,87542.0,87541.0,0.02919024]
[1743071664749,0.35728626,87542.0,87541.0,0.02919024]
[1743071665146,0.35728626,87542.0,87541.0,0.06239024]
[1743071665451,0.35728626,87542.0,87541.0,0.06299024]
[1743071665647,0.35728626,87542.0,87541.0,0.06239024]
[1743071666150,0.35728626,87542.0,87541.0,0.06303024]
[1743071666652,0.35728626,87542.0,87541.0,0.06239024]
[1743071666853,0.35728626,87542.0,87541.0,0.06307024]
[1743071667047,0.07154916,87542.0,87541.0,0.17728864]
[1743071667241,0.07046916,87542.0,87541.0,0.17728864]
[1743071667438,0.31983241,87545.0,87544.0,0.1142145]
[1743071667748,0.32051241,87545.0,87544.0,0.1148145]
[1743071668043,0.1148932,87545.0,87544.0,0.1787145]
[1743071668650,0.00068,87545.0,87544.0,0.1787145]
[1743071668956,0.00168,87545.0,87544.0,0.1787145]
[1743071669450,8e-05,87546.0,87544.0,0.07590671]
[1743071669754,0.00068,87546.0,87545.0,0.1142132]
[1743071669953,0.00068,87546.0,87545.0,0.1148932]
[1743071670249,0.00068,87546.0,87545.0,0.1468932]
[1743071670454,0.1148919,87546.0,87545.0,0.1468932]
[1743071672251,0.1158919,87546.0,87545.0,0.1468932]
[1743071672556,0.1168919,87546.0,87545.0,0.1468932]
[1743071673356,0.1168919,87546.0,87545.0,0.1770932]
[1743071673755,0.00268,87546.0,87545.0,0.1770932]
[1743071674554,0.002,87546.0,87545.0,0.1770932]
[1743071674751,0.00268,87546.0,87545.0,0.1770932]
[1743071677054,0.00268,87546.0,87545.0,0.1749932]
[1743071677258,0.00268,87546.0,87545.0,0.2846732]
[1743071677559,0.002,87546.0,87545.0,0.2846732]
[1743071678047,0.1168919,87546.0,87545.0,0.2846732]
[1743071678250,0.00268,87546.0,87545.0,0.2846732]
[1743071679160,0.03288,87546.0,87545.0,0.2846732]
[1743071679358,0.0322,87546.0,87545.0,0.2846732]
[1743071679560,0.03804308,87546.0,87545.0,0.2846732]
[1743071680359,0.03804308,87546.0,87545.0,0.3151732]
[1743071682764,0.03804308,87546.0,87545.0,0.6759732]
[1743071684964,0.06964308,87546.0,87545.0,0.6759732]
[1743071686261,0.06964308,87546.0,87545.0,0.3151732]
[1743071686467,0.07908001,87546.0,87545.0,0.3151732]
[1743071686656,0.19329191,87546.0,87545.0,0.6759732]
[1743071686861,0.19261191,87546.0,87545.0,0.6759732]
[1743071687757,0.19329191,87546.0,87545.0,0.6759732]
[1743071689666,0.07908001,87546.0,87545.0,0.6759732]
[1743071689862,0.07840001,87546.0,87545.0,0.6759732]
[1743071690063,0.19261191,87546.0,87545.0,0.6454732]
[1743071690262,0.19329191,87546.0,87545.0,0.6774732]
[1743071690660,0.18453498,87546.0,87545.0,0.6774732]
[1743071691673,0.19330218,87546.0,87545.0,0.6774732]
[1743071692666,0.19330218,87546.0,87545.0,0.36148]
[1743071693570,0.18453498,87546.0,87545.0,0.36148]
[1743071694374,0.18453498,87546.0,87545.0,0.4756932]
[1743071695667,0.18453498,87546.0,87545.0,0.1148932]
[1743071696576,0.19612125,87546.0,87545.0,0.00068]
[1743071697770,0.20504315,87546.0,87545.0,0.00068]
[1743071702884,0.19612125,87546.0,87545.0,0.00068]
[1743071705285,0.18453498,87546.0,87545.0,0.1148932]
[1743071705484,0.18453498,87546.0,87545.0,0.2078932]
[1743071705682,0.19329806,87546.0,87545.0,0.2078932]
[1743071707790,0.18453498,87546.0,87545.0,0.2078932]
[1743071710393,0.28717723,87546.0,87545.0,0.2078932]
[1743071711995,0.28133415,87546.0,87545.0,0.2078932]
[1743071714284,0.1786919,87546.0,87545.0,0.2078932]
[1743071722205,0.28133415,87546.0,87545.0,0.2078932]
[1743071725801,0.1786919,87546.0,87545.0,0.2078932]
[1743071732112,0.1786919,87546.0,87545.0,0.5686932]
[1743071732312,0.1786919,87546.0,87545.0,0.5061932]
[1743071735005,0.1786919,87546.0,87545.0,0.1453932]
[1743071735216,0.1786919,87546.0,87545.0,0.5061932]
[1743071735818,0.1786919,87546.0,87545.0,0.5383932]
[1743071738915,0.1786919,87546.0,87545.0,0.5061932]
[1743071740520,0.1786919,87546.0,87545.0,0.4756932]
[1743071742216,0.06448,87546.0,87545.0,0.4756932]
[1743071742421,0.06448,87546.0,87545.0,0.5382932]
[1743071742813,0.1786919,87546.0,87545.0,0.5382932]
[1743071743521,0.06448,87546.0,87545.0,0.5382932]
[1743071743724,0.1786919,87546.0,87545.0,0.5382932]
[1743071745120,0.1786919,87546.0,87545.0,0.5062932]
[1743071745422,0.2097919,87546.0,87545.0,0.5062932]
[1743071745919,0.21856749,87546.0,87545.0,0.5062932]
[1743071746113,0.22443166,87546.0,87545.0,0.5062932]
[1743071746423,0.22443179,87546.0,87545.0,0.5062932]
[1743071747426,0.22443179,87546.0,87545.0,0.1454932]
[1743071747723,0.22443179,87546.0,87545.0,0.5062932]
[1743071750424,0.22445454,87546.0,87545.0,0.1454932]
[1743071750720,0.32720936,87546.0,87545.0,0.1454932]
[1743071750924,0.32720936,87546.0,87545.0,0.5062932]
[1743071753525,0.32720936,87546.0,87545.0,0.1454932]
[1743071753923,0.32720936,87546.0,87545.0,0.5372932]
[1743071754523,0.32720936,87546.0,87545.0,0.1764932]
[1743071754726,0.32720936,87546.0,87545.0,0.5372932]
[1743071756833,0.32720936,87546.0,87545.0,0.1764932]
[1743071757035,0.32720936,87546.0,87545.0,0.5372932]
[1743071758733,0.32722794,87546.0,87545.0,0.5372932]
[1743071759128,0.29612794,87546.0,87545.0,0.5703932]
[1743071759928,0.28731089,87546.0,87545.0,0.5703932]
[1743071762255,0.29607333,87546.0,87545.0,0.5703932]
[1743071763152,0.18455607,87546.0,87545.0,0.5703932]
[1743071765150,0.19332714,87546.0,87545.0,0.5703932]
[1743071766661,0.19332714,87546.0,87545.0,0.2095932]
[1743071766855,0.19332714,87546.0,87545.0,0.5703932]
[1743071767653,0.19332714,87546.0,87545.0,0.2095932]
[1743071767961,0.19332714,87546.0,87545.0,0.5703932]
[1743071768157,0.19332714,87546.0,87545.0,0.5062932]
[1743071770265,0.19336043,87546.0,87545.0,0.5062932]
[1743071772966,0.19336043,87546.0,87545.0,0.5364932]
[1743071774356,0.29616615,87546.0,87545.0,0.5364932]
[1743071775357,0.12015425,87546.0,87545.0,0.5364932]
[1743071775655,0.20561921,87560.0,87552.0,0.1142041]
[1743071775857,0.1467954,87559.0,87558.0,0.1141963]
[1743071776161,0.0326,87559.0,87558.0,0.5855963]
[1743071776358,0.1467949,87559.0,87558.0,0.6165963]
[1743071777268,0.1497949,87559.0,87558.0,0.6165963]
[1743071777763,0.1814949,87559.0,87558.0,0.6487963]
[1743071779162,0.1824949,87559.0,87558.0,0.6487963]
[1743071779467,0.1824949,87559.0,87558.0,0.66051352]
[1743071782365,0.1824949,87559.0,87558.0,0.93436084]
[1743071782566,0.1824949,87559.0,87558.0,0.56184362]
[1743071782761,0.1824949,87559.0,87558.0,0.92264362]
[1743071783963,0.1824949,87559.0,87558.0,0.74976362]
[1743071784365,0.18337491,87559.0,87558.0,0.74976362]
[1743071786268,0.18337491,87559.0,87558.0,0.78046362]
[1743071786470,0.1824949,87559.0,87558.0,0.78046362]
[1743071787371,0.1824949,87559.0,87558.0,0.5066163]
[1743071789081,0.1824949,87559.0,87558.0,0.5373163]
[1743071790481,0.1824949,87559.0,87558.0,0.5685163]
[1743071790681,0.1804949,87559.0,87558.0,0.5685163]
[1743071791480,0.1804949,87559.0,87558.0,0.5066163]
[1743071791881,0.18137491,87559.0,87558.0,0.5066163]
[1743071792573,0.18137491,87559.0,87558.0,0.5382163]
[1743071794782,0.1804949,87559.0,87558.0,0.5382163]
[1743071795184,0.1804949,87559.0,87558.0,0.5066163]
[1743071795688,0.2125149,87559.0,87558.0,0.5066163]
[1743071797577,0.2125149,87559.0,87558.0,0.4759163]
[1743071797885,0.2115949,87559.0,87558.0,0.56659989]
[1743071798093,0.2115949,87559.0,87545.0,0.34247907]
[1743071798094,0.0570998,87556.0,87545.0,0.34247907]
[1743071798389,0.1142119,87546.0,87545.0,0.34307907]
[1743071798583,0.11481191,87546.0,87545.0,0.34307907]
[1743071798785,0.17991191,87546.0,87545.0,0.34307907]
[1743071801191,0.19151766,87546.0,87545.0,0.34307907]
[1743071801793,0.19151766,87546.0,87545.0,0.0006]
[1743071806392,0.19731404,87546.0,87545.0,0.0006]
[1743071807883,0.19151766,87546.0,87545.0,0.0006]
[1743071810197,0.19151766,87546.0,87545.0,0.1148132]
[1743071810398,0.19111766,87546.0,87545.0,0.1148132]
[1743071810601,0.22321766,87546.0,87545.0,0.1148132]
[1743071812791,0.22321766,87546.0,87545.0,0.0006]
[1743071813190,0.22321766,87546.0,87545.0,0.1148132]
[1743071814294,0.22321766,87546.0,87545.0,0.0006]
[1743071816004,0.114221,87539.0,87537.0,0.17881327]
[1743071816301,0.1142236,87537.0,87536.0,0.0001713]
[1743071816487,0.1237009,87537.0,87536.0,0.0001713]
[1743071816692,0.2174009,87537.0,87536.0,0.0001713]
[1743071817201,0.22328915,87537.0,87536.0,0.0007713]
[1743071818591,0.22328915,87537.0,87536.0,0.0027713]
[1743071819092,0.22328915,87537.0,87536.0,0.0007713]
[1743071819800,0.21453185,87537.0,87536.0,0.0007713]
[1743071820203,0.2086436,87537.0,87536.0,0.0007713]
[1743071825194,0.21444095,87537.0,87536.0,0.0007713]
[1743071825396,0.21444095,87537.0,87536.0,0.0001713]
[1743071825597,0.32412095,87537.0,87536.0,0.0001713]
[1743071825995,0.3183236,87537.0,87536.0,0.0001713]
[1743071826701,0.2883236,87537.0,87536.0,0.0001713]
[1743071827190,0.1786436,87537.0,87536.0,0.0001713]
[1743071827397,0.2883236,87537.0,87536.0,0.0007713]
[1743071827598,0.2883236,87537.0,87536.0,0.0001713]
[1743071827801,0.2883236,87537.0,87536.0,0.0007713]
[1743071828107,0.2883236,87537.0,87536.0,0.0001713]
[1743071828493,0.2883236,87537.0,87536.0,0.0326713]
[1743071828694,0.2884836,87537.0,87536.0,0.0642713]
[1743071828896,0.2884836,87537.0,87536.0,0.06555129]
[1743071829894,0.2884836,87537.0,87536.0,0.06615129]
[1743071830395,0.2884836,87537.0,87536.0,0.06555129]
[1743071830599,0.2884836,87537.0,87536.0,0.06615129]
[1743071832004,0.2884836,87537.0,87536.0,0.06555129]
[1743071832597,0.2884836,87537.0,87536.0,0.06623129]
[1743071832800,0.2884836,87537.0,87536.0,0.06555129]
[1743071833201,0.2883236,87537.0,87536.0,0.06555129]
[1743071833397,0.2883236,87537.0,87536.0,0.0642713]
[1743071833592,0.2884836,87537.0,87536.0,0.0648713]
[1743071833805,0.2884836,87537.0,87536.0,0.06555129]
[1743071834500,0.2884836,87537.0,87536.0,0.06623129]
[1743071837006,0.1151036,87537.0,87536.0,0.06623129]
[1743071837707,0.1151036,87537.0,87536.0,0.09703129]
[1743071838111,0.1142236,87537.0,87536.0,0.09703129]
[1743071838410,0.1445236,87537.0,87536.0,0.2099763]
[1743071838606,0.1446836,87537.0,87536.0,0.2099763]
[1743071838809,0.1446836,87537.0,87536.0,0.57205629]
[1743071840513,0.1454036,87537.0,87536.0,0.57205629]
[1743071840809,0.1454036,87537.0,87536.0,0.21125629]
[1743071841012,0.1454036,87537.0,87536.0,0.57205629]
[1743071843311,0.1452436,87537.0,87536.0,0.5707763]
[1743071843703,0.1454036,87537.0,87536.0,0.5707763]
[1743071843904,0.1454036,87537.0,87536.0,0.57205629]
[1743071844310,0.1454036,87537.0,87536.0,0.21125629]
[1743071844507,0.1454036,87537.0,87536.0,0.57205629]
[1743071847910,0.1781036,87537.0,87536.0,0.57205629]
[1743071848111,0.1779436,87537.0,87536.0,0.57205629]
[1743071848311,0.1779436,87537.0,87536.0,0.5707763]
[1743071848712,0.1781036,87537.0,87536.0,0.5707763]
[1743071849219,0.18953508,87537.0,87536.0,0.5707763]
[1743071849413,0.18953508,87537.0,87536.0,0.06543129]
[1743071849613,0.22063508,87537.0,87536.0,0.00145129]
[1743071850507,0.22650096,87537.0,87536.0,0.00145129]
[1743071850703,0.23527297,87537.0,87536.0,0.00145129]
[1743071851206,0.23527297,87537.0,87536.0,0.00205129]
[1743071851814,0.40605142,87537.0,87536.0,0.00205129]
[1743071852017,0.40606306,87537.0,87536.0,0.00205129]
[1743071853118,0.40590306,87537.0,87536.0,0.00205129]
[1743071853318,0.40590306,87537.0,87536.0,0.0001713]
[1743071853621,0.40606306,87537.0,87536.0,0.0001713]
[1743071853814,0.40606306,87537.0,87536.0,0.00217129]
[1743071854511,0.40606306,87537.0,87536.0,0.00145129]
[1743071854714,0.40606306,87537.0,87536.0,0.00205129]
[1743071855119,0.40606306,87537.0,87536.0,0.00145129]
[1743071855722,0.51574306,87537.0,87536.0,0.00145129]
[1743071856921,0.87654306,87537.0,87536.0,0.00145129]
[1743071858419,0.70576461,87537.0,87536.0,0.00145129]
[1743071858613,0.70560461,87537.0,87536.0,0.00145129]
[1743071859009,0.70560461,87537.0,87536.0,0.0001713]
[1743071859523,0.70576461,87537.0,87536.0,0.00145129]
[1743071860610,0.70576461,87537.0,87536.0,0.00217129]
[1743071860815,0.73321824,87537.0,87536.0,0.00145129]
[1743071863019,0.73305824,87537.0,87536.0,0.00145129]
[1743071863417,0.73305824,87537.0,87536.0,0.0001713]
[1743071863618,0.73321824,87537.0,87536.0,0.0001713]
[1743071863924,0.73321824,87537.0,87536.0,0.00145129]
[1743071864421,0.70576461,87537.0,87536.0,0.00145129]
[1743071864813,0.70576461,87537.0,87536.0,0.00127999]
[1743071865017,0.71147847,87537.0,87536.0,9e-08]
[1743071865225,0.1142484,87518.0,87517.0,0.06198]
[1743071865424,0.12303205,87518.0,87517.0,0.06258]
[1743071865629,0.12961793,87518.0,87517.0,0.06258]
[1743071865831,0.19251793,87518.0,87517.0,0.06258]
[1743071866129,0.20424756,87518.0,87517.0,0.06258]
[1743071866819,0.20424756,87518.0,87517.0,0.06358]
[1743071867924,0.20452411,87518.0,87517.0,0.06458]
[1743071870820,0.20452411,87518.0,87517.0,0.0645]
[1743071871218,0.20460948,87518.0,87517.0,0.0645]
[1743071880230,0.20460948,87518.0,87517.0,0.1787498]
[1743071881334,0.15133428,87518.0,87517.0,0.1787498]
[1743071881533,0.15951251,87518.0,87517.0,0.1787498]
[1743071882822,0.16027251,87518.0,87517.0,0.1787498]
[1743071885035,0.19277251,87518.0,87517.0,0.1787498]
[1743071887532,0.19285215,87518.0,87517.0,0.1787498]
[1743071896150,0.19282577,87518.0,87517.0,0.1787498]
[1743071904942,0.32957096,87518.0,87517.0,0.1787498]
[1743071905143,0.34447202,87518.0,87517.0,0.1787498]
[1743071905450,0.34483413,87518.0,87517.0,0.0026]
[1743071905649,0.34483413,87518.0,87512.0,0.27434409]
[1743071905650,0.0571256,87516.0,87512.0,0.27434409]
[1743071905854,0.0571256,87516.0,87509.0,0.0001713]
[1743071905855,0.1142589,87510.0,87509.0,0.0001713]
[1743071906051,0.50618845,87510.0,87509.0,0.0008513]
[1743071906254,0.58708712,87510.0,87509.0,0.0008513]
[1743071906549,0.58708712,87510.0,87509.0,0.0009313]
[1743071906748,0.58708712,87510.0,87505.0,0.0017942]
[1743071906749,0.1142628,87507.0,87506.0,0.31776788]
[1743071906953,0.1142706,87501.0,87485.0,0.60772059]
[1743071907257,0.1142706,87501.0,87499.0,8e-05]
[1743071907258,0.58631061,87501.0,87499.0,8e-05]
[1743071907443,0.58631061,87501.0,87496.0,0.00045716]
[1743071907644,0.64861061,87501.0,87496.0,0.00045716]
[1743071907845,0.65447649,87501.0,87496.0,0.00045716]
[1743071908146,0.66323867,87501.0,87500.0,0.41043923]
[1743071908845,0.66323867,87501.0,87500.0,0.41143923]
[1743071909351,0.66321981,87501.0,87500.0,0.41143923]
[1743071910053,0.67448443,87501.0,87500.0,0.41143923]
[1743071910256,0.67448443,87501.0,87500.0,0.002]
[1743071912154,0.66574111,87501.0,87500.0,0.002]
[1743071913759,0.69824111,87501.0,87500.0,0.002]
[1743071916358,0.33744111,87501.0,87500.0,0.002]
[1743071916553,0.83472545,87501.0,87500.0,0.002]
[1743071917153,0.84346588,87501.0,87500.0,0.002]
[1743071918156,0.48266588,87501.0,87500.0,0.002]
[1743071918769,0.84346588,87501.0,87500.0,0.002]
[1743071919354,0.83472545,87501.0,87500.0,0.002]
[1743071919555,0.84347257,87501.0,87500.0,0.002]
[1743071921370,0.70698823,87501.0,87500.0,0.002]
[1743071922160,0.59730823,87501.0,87500.0,0.002]
[1743071922365,0.70698823,87501.0,87500.0,0.002]
[1743071925574,0.70702505,87501.0,87500.0,0.002]
[1743071927570,0.70700572,87501.0,87500.0,0.002]
[1743071927971,0.1142759,87497.0,87496.0,0.00045716]
[1743071928170,0.1142837,87491.0,87490.0,6e-08]
[1743071928370,0.1142955,87482.0,87481.0,0.0645]
[1743071928645,0.12462012,87482.0,87481.0,0.0952]
[1743071929266,0.12172139,87482.0,87481.0,0.0952]
[1743071929466,0.18442139,87482.0,87481.0,0.0952]
[1743071930367,0.19577116,87482.0,87481.0,0.0952]
[1743071931273,0.19577116,87482.0,87481.0,0.0982]
[1743071937281,0.20450904,87482.0,87481.0,0.0982]
[1743071938271,0.20450851,87482.0,87481.0,0.0982]
[1743071939376,0.17270851,87482.0,87481.0,0.0982]
[1743071941983,0.14180851,87482.0,87481.0,0.2124968]
[1743071942185,0.14180851,87482.0,87481.0,0.0982]
[1743071942776,0.14180851,87482.0,87481.0,0.2124968]
[1743071942977,0.14180851,87482.0,87481.0,0.0982]
[1743071943387,0.17350851,87482.0,87481.0,0.0982]
[1743071944484,0.16477116,87482.0,87481.0,0.0982]
[1743071944685,0.16477116,87482.0,87481.0,0.2124968]
[1743071944881,0.16477116,87482.0,87481.0,0.0982]
[1743071945278,0.17354651,87482.0,87481.0,0.2124968]
[1743071949981,0.16219674,87482.0,87481.0,0.2239615]
[1743071950182,0.13049674,87482.0,87481.0,0.2239615]
[1743071950583,0.16349674,87482.0,87481.0,0.0982]
[1743071950792,0.19629674,87482.0,87481.0,0.0337]
[1743071951199,0.19629674,87482.0,87481.0,0.0644]
[1743071951382,0.21169909,87482.0,87481.0,0.0644]
[1743071951695,0.21169909,87482.0,87481.0,0.1786968]
[1743071951893,0.22193715,87482.0,87481.0,0.0644]
[1743071955191,0.21169909,87482.0,87481.0,0.0644]
[1743071957190,0.21169909,87482.0,87481.0,0.03867386]
[1743071958788,0.26727292,87482.0,87481.0,0.03867386]
[1743071958986,0.08717742,87482.0,87481.0,0.51377066]
[1743071959492,0.18607057,87482.0,87481.0,2.01377066]
[1743071959698,0.18451056,87482.0,87481.0,2.01377066]
[1743071960399,0.17573521,87482.0,87481.0,2.01377066]
[1743071960602,0.06143971,87482.0,87481.0,2.01377066]
[1743071962393,0.22280363,87482.0,87481.0,2.01377066]
[1743071962898,0.25480363,87482.0,87481.0,2.01377066]
[1743071963288,0.10850813,87482.0,87481.0,2.12817066]
[1743071963501,0.23190323,87482.0,87481.0,2.12817066]
[1743071963699,0.24182726,87482.0,87481.0,2.12817066]
[1743071964107,0.12753176,87482.0,87481.0,2.12817066]
[1743071966205,0.24182726,87482.0,87481.0,2.12817066]
[1743071966504,0.13918501,87482.0,87481.0,2.12817066]
[1743071966899,0.12355469,87482.0,87481.0,2.12817066]
[1743071967206,0.13990731,87482.0,87481.0,2.12817066]
[1743071967503,0.02561181,87482.0,87481.0,2.12817066]
[1743071967704,0.0571469,87484.0,87483.0,0.1142942]
[1743071967903,0.0903469,87484.0,87483.0,0.1142942]
[1743071968106,0.09190691,87484.0,87483.0,0.2063942]
[1743071968305,0.09190691,87484.0,87483.0,1.7063942]
[1743071968605,0.1207469,87484.0,87483.0,1.7063942]
[1743071969001,0.1207469,87484.0,87483.0,1.7073942]
[1743071969307,0.2350411,87484.0,87483.0,1.7073942]
[1743071970302,0.23660111,87484.0,87483.0,1.7083942]
[1743071970507,0.25143262,87484.0,87483.0,1.7083942]
[1743071970704,0.25143262,87484.0,87483.0,1.8226742]
[1743071971101,0.25143262,87484.0,87483.0,0.2083942]
[1743071971700,0.25143262,87484.0,87483.0,0.1768942]
[1743071971901,0.07999152,87484.0,87483.0,0.1768942]
[1743071973409,0.19428432,87484.0,87483.0,0.1768942]
[1743071975609,0.19428432,87484.0,87483.0,0.5376942]
[1743071976205,0.19428432,87484.0,87483.0,0.1768942]
[1743071976417,0.19428432,87484.0,87483.0,1.6768942]
[1743071976709,0.19272431,87484.0,87483.0,2.0376942]
[1743071978109,0.20265154,87484.0,87483.0,2.0376942]
[1743071979616,0.21219813,87484.0,87483.0,2.0376942]
[1743071979804,0.21219813,87484.0,87483.0,1.6768942]
[1743071980110,0.21383814,87484.0,87483.0,2.0376942]
[1743071980306,0.21844829,87484.0,87483.0,2.0376942]
[1743071980712,0.21844829,87484.0,87483.0,2.1541742]
[1743071981818,0.32100131,87484.0,87483.0,2.1541742]
[1743071982509,0.32264132,87484.0,87483.0,2.1541742]
[1743071983410,0.32264132,87484.0,87483.0,2.1236742]
[1743071984211,0.32264132,87484.0,87483.0,2.0935742]
[1743071984715,0.32100131,87484.0,87483.0,2.1565942]
[1743071985116,0.32256132,87484.0,87483.0,2.1565942]
[1743071985317,0.2200083,87484.0,87483.0,2.1565942]
[1743071985517,0.21844829,87484.0,87483.0,2.1565942]
[1743071987616,0.20361678,87484.0,87483.0,2.1565942]
[1743071989926,0.20361678,87484.0,87483.0,2.1256942]
[1743071990224,0.19368955,87484.0,87483.0,2.1252542]
[1743071990922,0.33054589,87484.0,87483.0,2.1252542]
[1743071991220,0.3321059,87484.0,87483.0,2.1252542]
[1743071991418,0.3321059,87484.0,87483.0,2.0928542]
[1743071992417,0.3321059,87484.0,87483.0,1.7320542]
[1743071992617,0.3321059,87484.0,87483.0,2.0928542]
[1743071993118,0.33176633,87484.0,87483.0,2.0928542]
[1743071993924,0.19490999,87484.0,87483.0,2.0928542]
[1743071994107,0.19334998,87484.0,87483.0,2.0928542]
[1743071995421,0.19334998,87484.0,87483.0,2.0925742]
[1743071999125,0.19339663,87484.0,87483.0,2.0925742]
[1743072000232,0.19339663,87484.0,87483.0,1.97828]
[1743072000923,0.19334213,87484.0,87483.0,1.97828]
[1743072001228,0.19334213,87484.0,87483.0,0.3628]
[1743072001418,0.19490214,87484.0,87483.0,0.3628]
[1743072001721,0.19490214,87484.0,87483.0,0.002]
[1743072003426,0.19490214,87484.0,87483.0,0.1162942]
[1743072003821,0.19455819,87484.0,87483.0,0.1162942]
[1743072004021,0.19455819,87484.0,87483.0,0.002]
[1743072004426,0.19455819,87484.0,87483.0,0.1162942]
[1743072004623,0.19299818,87484.0,87483.0,0.1162942]
[1743072005424,0.19299818,87484.0,87483.0,0.002]
[1743072005623,0.19455819,87484.0,87483.0,0.002]
[1743072005829,0.19299818,87484.0,87483.0,0.1162942]
[1743072010625,0.19312231,87484.0,87483.0,0.1162942]
[1743072011227,0.19468232,87484.0,87483.0,0.1162942]
[1743072011434,0.19312231,87484.0,87483.0,0.1162942]
[1743072015732,0.18414296,87484.0,87483.0,0.1162942]
[1743072017956,0.41078324,87484.0,87483.0,0.1483942]
[1743072018156,0.41234325,87484.0,87483.0,0.1483942]
[1743072019454,0.41234325,87484.0,87483.0,0.0341]
[1743072020651,0.41234325,87484.0,87483.0,0.1483942]
[1743072020849,0.41234325,87484.0,87483.0,0.0341]
[1743072021251,0.3567734,87484.0,87483.0,0.0341]
[1743072021651,0.3567734,87484.0,87483.0,0.002]
[1743072025962,0.3567734,87484.0,87483.0,0.0337]
[1743072028654,0.24127282,87484.0,87483.0,0.0337]
[1743072042265,0.24127282,87484.0,87483.0,0.002]
[1743072043762,0.24127282,87484.0,87483.0,0.0348]
[1743072046975,0.23502266,87484.0,87483.0,0.0348]
[1743072047365,0.24095706,87484.0,87483.0,0.0348]
[1743072050976,0.24095706,87484.0,87483.0,0.1490942]
[1743072051173,8e-05,87507.0,87494.0,0.0571392]
[1743072051376,8e-05,87507.0,87498.0,0.1142746]
[1743072051377,0.0325,87499.0,87498.0,0.1142746]
[1743072051573,0.14789461,87499.0,87498.0,0.1464146]
[1743072051772,0.14789461,87499.0,87498.0,0.1791146]
[1743072052077,0.17979461,87499.0,87498.0,0.1791146]
[1743072052273,0.1786746,87499.0,87498.0,0.1791146]
[1743072052471,0.17975461,87499.0,87498.0,0.1791146]
[1743072053276,0.18175461,87499.0,87498.0,0.1791146]
[1743072053471,0.1836746,87499.0,87498.0,0.1791146]
[1743072055067,0.18479461,87499.0,87498.0,0.1791146]
[1743072055675,0.18479461,87499.0,87498.0,0.5399146]
[1743072061584,0.28732726,87499.0,87498.0,0.5399146]
[1743072063680,0.13686126,87504.0,87502.0,0.0571346]
[1743072063880,0.25196796,87504.0,87503.0,0.0952]
[1743072064077,0.25196796,87504.0,87503.0,0.209468]
[1743072064278,0.25196796,87504.0,87503.0,1.710068]
[1743072064479,0.31402796,87504.0,87503.0,1.709468]
[1743072065286,0.1771667,87504.0,87503.0,1.709468]
[1743072065480,0.1781667,87504.0,87503.0,1.709468]
[1743072065979,0.1801667,87504.0,87503.0,1.709468]
[1743072067484,0.1801667,87504.0,87503.0,2.070268]
[1743072069693,0.1801667,87504.0,87503.0,0.570268]
[1743072069877,0.1809267,87504.0,87503.0,0.571028]
[1743072070393,0.1801667,87504.0,87503.0,0.571028]
[1743072071683,0.1801667,87504.0,87503.0,0.537828]
[1743072071882,0.1809267,87504.0,87503.0,0.537828]
[1743072072289,0.18971565,87504.0,87503.0,0.537828]
[1743072073089,0.19548681,87504.0,87503.0,0.537828]
[1743072077191,0.19555993,87504.0,87503.0,0.537828]
[1743072083100,0.19555993,87504.0,87503.0,0.569228]
[1743072083699,0.19555993,87504.0,87503.0,0.208428]
[1743072083894,0.19555993,87504.0,87503.0,0.569228]
[1743072085093,0.19564218,87504.0,87503.0,0.569228]
[1743072085799,0.19564218,87504.0,87503.0,0.208428]
[1743072086000,0.19564218,87504.0,87503.0,0.569228]
[1743072087603,0.19564218,87504.0,87503.0,1.708428]
[1743072087806,0.19488218,87504.0,87503.0,2.069228]
[1743072089094,0.19488658,87504.0,87503.0,2.069228]
[1743072089498,0.33174784,87504.0,87503.0,1.708428]
[1743072089705,0.33254784,87504.0,87503.0,2.069228]
[1743072092502,0.33254784,87504.0,87503.0,1.708428]
[1743072092708,0.33254784,87504.0,87503.0,2.069228]
[1743072092908,0.19568658,87504.0,87503.0,2.069228]
[1743072093109,0.19488658,87504.0,87503.0,2.069228]
[1743072097507,0.19488658,87504.0,87503.0,2.007128]
[1743072097808,0.22488658,87504.0,87503.0,0.00076]
[1743072098001,0.1142719,87500.0,87499.0,0.20479294]
[1743072098204,0.12422062,87500.0,87499.0,0.20547294]
[1743072098405,0.19389178,87500.0,87499.0,0.20547294]
[1743072099606,0.19589178,87500.0,87499.0,0.20547294]
[1743072101112,0.19589178,87500.0,87499.0,0.00068]
[1743072101113,0.19689178,87500.0,87499.0,0.00068]
[1743072101412,0.19700796,87500.0,87499.0,0.00068]
[1743072103013,0.1142733,87499.0,87498.0,8e-05]
[1743072103214,0.1142733,87499.0,87498.0,0.00076]
[1743072103215,0.12440417,87499.0,87498.0,0.00076]
[1743072103417,0.18750417,87499.0,87498.0,0.00076]
[1743072103709,0.19327533,87499.0,87498.0,0.00076]
[1743072103915,0.19327533,87499.0,87498.0,8e-05]
[1743072104617,0.19427533,87499.0,87498.0,8e-05]
[1743072105012,0.19427533,87499.0,87498.0,0.00068]
[1743072106118,0.19627533,87499.0,87498.0,0.00068]
[1743072106622,0.2111648,87499.0,87498.0,0.00068]
[1743072107412,0.19627533,87499.0,87498.0,0.00068]
[1743072108622,0.19627533,87499.0,87498.0,0.03348]
[1743072111016,0.19647474,87499.0,87498.0,0.03348]
[1743072111822,0.19647212,87499.0,87498.0,0.03348]
[1743072115525,0.19647925,87499.0,87498.0,0.03348]
[1743072116518,0.21142519,87499.0,87498.0,0.03348]
[1743072117527,0.21142519,87499.0,87497.0,0.3922]
[1743072117528,0.1142746,87498.0,87497.0,0.3922]
[1743072117830,0.13046055,87498.0,87497.0,0.39336]
[1743072118030,0.19616055,87498.0,87497.0,0.39336]
[1743072118829,0.19716055,87498.0,87497.0,0.39336]
[1743072119126,0.19916055,87498.0,87497.0,0.39336]
[1743072121927,0.21066585,87498.0,87497.0,0.39336]
[1743072122826,0.21066585,87498.0,87497.0,0.03256]